[Event "GrandPrix_29.05"]
[Site "Chess.com"]
[Date "2020.05.29"]
[Round "6"]
[White "viktorko131"]
[Black "matej2221"]
[Result "0-1"]
[WhiteElo "2157"]
[BlackElo "2195"]
[TimeControl "600+2"]
[EndTime "12:01:42 PDT"]
[Termination "matej2221 won by resignation"]

1. e4 {[%clk 0:10:01.9]} 1... e5 {[%clk 0:09:59.8]} 2. Nf3 {[%clk 0:10:02.2]}
2... Nc6 {[%clk 0:10:01.1]} 3. Bb5 {[%clk 0:10:02.9]} 3... a6 {[%clk 0:10:02.5]}
4. Ba4 {[%clk 0:10:03.7]} 4... Nge7 {[%clk 0:10:03.7]} 5. O-O {[%clk 0:10:03.5]}
5... g6 {[%clk 0:10:04.8]} 6. c3 {[%clk 0:10:01.6]} 6... Bg7 {[%clk 0:10:03.4]}
7. d4 {[%clk 0:10:01.7]} 7... exd4 {[%clk 0:09:53.8]} 8. cxd4 {[%clk 0:10:01.6]}
8... b5 {[%clk 0:09:43.7]} 9. Bb3 {[%clk 0:09:58.5]} 9... O-O {[%clk 0:09:43.8]}
10. Nc3 {[%clk 0:09:54.9]} 10... d6 {[%clk 0:09:41.3]} 11. h3 {[%clk 0:09:37.4]}
11... Na5 {[%clk 0:09:34.1]} 12. Bc2 {[%clk 0:09:38.3]} 12... c5 {[%clk
0:09:34.8]} 13. Bf4 {[%clk 0:08:53.5]} 13... cxd4 {[%clk 0:09:23.5]} 14. Nxd4
{[%clk 0:08:51.5]} 14... Bb7 {[%clk 0:09:19.1]} 15. b3 {[%clk 0:07:54.2]} 15...
Rc8 {[%clk 0:09:14.6]} 16. Nce2 {[%clk 0:07:48.5]} 16... d5 {[%clk 0:09:06]} 17.
exd5 {[%clk 0:05:36.1]} 17... Qxd5 {[%clk 0:08:37.8]} 18. f3 {[%clk 0:05:35.5]}
18... Rfd8 {[%clk 0:08:29]} 19. Be3 {[%clk 0:05:28.1]} 19... Qe5 {[%clk
0:08:00.9]} 20. Bf2 {[%clk 0:04:58.6]} 20... Nd5 {[%clk 0:08:01.7]} 21. Be4
{[%clk 0:04:43.5]} 21... Nc3 {[%clk 0:07:47.2]} 22. Nxc3 {[%clk 0:04:31.2]}
22... Rxc3 {[%clk 0:07:47]} 23. Qe1 {[%clk 0:04:06]} 23... b4 {[%clk 0:06:34.9]}
24. Bxb7 {[%clk 0:03:18.5]} 24... Nxb7 {[%clk 0:06:35.2]} 25. Rd1 {[%clk
0:02:48.7]} 25... Qxe1 {[%clk 0:05:22.5]} 26. Rfxe1 {[%clk 0:02:46.7]} 26... Nc5
{[%clk 0:05:12.9]} 27. Nc6 {[%clk 0:01:15.1]} 27... Rxd1 {[%clk 0:05:00.9]} 28.
Rxd1 {[%clk 0:01:15.4]} 28... Nd3 {[%clk 0:04:48.5]} 29. Ne7+ {[%clk 0:01:14.9]}
29... Kf8 {[%clk 0:04:48.1]} 30. Nd5 {[%clk 0:01:16.8]} 30... Nxf2 {[%clk
0:04:29.5]} 31. Nxc3 {[%clk 0:01:17.8]} 31... Nxd1 {[%clk 0:04:15.7]} 32. Nxd1
{[%clk 0:01:19.7]} 32... Bd4+ {[%clk 0:03:55.1]} 33. Kf1 {[%clk 0:01:20.3]}
33... Ke7 {[%clk 0:03:51.1]} 34. Ke2 {[%clk 0:01:21.3]} 34... Kd6 {[%clk
0:03:47.7]} 35. Ne3 {[%clk 0:00:49.4]} 35... Bxe3 {[%clk 0:02:53.1]} 36. Kxe3
{[%clk 0:00:51.3]} 36... Ke5 {[%clk 0:02:54.4]} 37. g4 {[%clk 0:00:51.3]} 37...
h5 {[%clk 0:02:48.7]} 38. f4+ {[%clk 0:00:46.5]} 38... Kd5 {[%clk 0:02:47.3]}
39. Kd3 {[%clk 0:00:22.6]} 39... hxg4 {[%clk 0:01:39.3]} 40. hxg4 {[%clk
0:00:22.5]} 40... f6 {[%clk 0:01:40.4]} 41. Ke3 {[%clk 0:00:16]} 41... g5 {[%clk
0:01:40.4]} 42. fxg5 {[%clk 0:00:06]} 42... fxg5 {[%clk 0:01:42.3]} 43. Kd3
{[%clk 0:00:07]} 43... a5 {[%clk 0:01:28.2]} 44. Ke3 {[%clk 0:00:07.2]} 44...
Ke5 {[%clk 0:01:29.4]} 45. Kf3 {[%clk 0:00:04]} 45... Kd4 {[%clk 0:01:28.8]} 46.
Kg3 {[%clk 0:00:03.3]} 46... Ke3 {[%clk 0:01:29.2]} 47. Kg2 {[%clk 0:00:02.9]}
47... Kf4 {[%clk 0:01:30.3]} 48. Kh3 {[%clk 0:00:04.3]} 48... Kf3 {[%clk
0:01:31.7]} 0-1

[Event "GrandPrix_29.05"]
[Site "Chess.com"]
[Date "2020.05.29"]
[Round "6"]
[White "Mikhail_Golubev"]
[Black "dosto07"]
[Result "1-0"]
[WhiteElo "2031"]
[BlackElo "1895"]
[TimeControl "600+2"]
[EndTime "12:01:44 PDT"]
[Termination "Mikhail_Golubev won by resignation"]

1. e4 {[%clk 0:10:01.9]} 1... e5 {[%clk 0:09:53.3]} 2. Nf3 {[%clk 0:09:57]} 2...
Nc6 {[%clk 0:09:47.4]} 3. Nc3 {[%clk 0:09:57.8]} 3... Nf6 {[%clk 0:09:46.7]} 4.
d4 {[%clk 0:09:58.8]} 4... exd4 {[%clk 0:09:45.7]} 5. Nxd4 {[%clk 0:09:59.8]}
5... Bb4 {[%clk 0:09:45.1]} 6. Nxc6 {[%clk 0:10:00.1]} 6... bxc6 {[%clk
0:09:44.1]} 7. Bd3 {[%clk 0:09:59.1]} 7... d5 {[%clk 0:09:44.1]} 8. Bd2 {[%clk
0:09:52.4]} 8... O-O {[%clk 0:08:53.6]} 9. O-O {[%clk 0:09:52.6]} 9... Rb8
{[%clk 0:08:22]} 10. exd5 {[%clk 0:09:47.3]} 10... cxd5 {[%clk 0:08:18.6]} 11.
Re1 {[%clk 0:09:13.2]} 11... Re8 {[%clk 0:08:05.9]} 12. Rxe8+ {[%clk 0:08:45.5]}
12... Qxe8 {[%clk 0:07:09.1]} 13. Bg5 {[%clk 0:08:42]} 13... Bxc3 {[%clk
0:06:39.7]} 14. bxc3 {[%clk 0:08:41.8]} 14... Ne4 {[%clk 0:06:38.2]} 15. Bf4
{[%clk 0:08:39.9]} 15... Qe7 {[%clk 0:05:16.4]} 16. c4 {[%clk 0:05:58.2]} 16...
Be6 {[%clk 0:03:39.3]} 17. cxd5 {[%clk 0:05:08.7]} 17... Bxd5 {[%clk 0:03:37.5]}
18. Qe1 {[%clk 0:05:04.7]} 18... Re8 {[%clk 0:03:29.6]} 19. Qa5 {[%clk 0:01:23]}
19... Qf6 {[%clk 0:02:59.5]} 20. Rf1 {[%clk 0:01:19.8]} 20... c6 {[%clk
0:02:04.6]} 21. Be3 {[%clk 0:00:36.1]} 21... h5 {[%clk 0:01:41.6]} 22. c4 {[%clk
0:00:25.8]} 22... h4 {[%clk 0:00:48.9]} 23. cxd5 {[%clk 0:00:25.3]} 23... h3
{[%clk 0:00:48]} 24. Bxe4 {[%clk 0:00:19.7]} 24... Rxe4 {[%clk 0:00:46.9]} 25.
dxc6 {[%clk 0:00:16.2]} 25... Rg4 {[%clk 0:00:40.8]} 26. Qd5 {[%clk 0:00:14.3]}
26... Rxg2+ {[%clk 0:00:39.4]} 27. Kh1 {[%clk 0:00:14.4]} 27... Qc3 {[%clk
0:00:15.4]} 28. Rc1 {[%clk 0:00:11.6]} 28... Qb2 {[%clk 0:00:11.4]} 29. c7
{[%clk 0:00:10.8]} 29... Rxf2 {[%clk 0:00:09.8]} 30. c8=Q+ {[%clk 0:00:10.2]}
30... Kh7 {[%clk 0:00:09.8]} 31. Qxh3+ {[%clk 0:00:10.3]} 1-0

[Event "GrandPrix_29.05"]
[Site "Chess.com"]
[Date "2020.05.29"]
[Round "6"]
[White "Flawless_Fighter"]
[Black "v-kazakouski"]
[Result "0-1"]
[WhiteElo "2216"]
[BlackElo "2444"]
[TimeControl "600+2"]
[EndTime "12:01:45 PDT"]
[Termination "v-kazakouski won on time"]

1. e4 {[%clk 0:09:22.7]} 1... c5 {[%clk 0:09:56.8]} 2. Nf3 {[%clk 0:09:23]} 2...
a6 {[%clk 0:09:57.1]} 3. c4 {[%clk 0:09:20.6]} 3... Nc6 {[%clk 0:09:56.8]} 4. d4
{[%clk 0:09:21.2]} 4... cxd4 {[%clk 0:09:56.9]} 5. Nxd4 {[%clk 0:09:23.1]} 5...
e5 {[%clk 0:09:57.2]} 6. Nf5 {[%clk 0:09:00]} 6... d6 {[%clk 0:09:57]} 7. Nc3
{[%clk 0:09:00.9]} 7... g6 {[%clk 0:09:57.1]} 8. Ne3 {[%clk 0:08:58.8]} 8... Bh6
{[%clk 0:09:57.5]} 9. Be2 {[%clk 0:08:40.9]} 9... Be6 {[%clk 0:09:37.8]} 10. O-O
{[%clk 0:08:38.2]} 10... Nf6 {[%clk 0:09:31]} 11. b3 {[%clk 0:08:13.8]} 11...
O-O {[%clk 0:08:57.2]} 12. Nc2 {[%clk 0:07:13]} 12... Bxc1 {[%clk 0:08:37.1]}
13. Rxc1 {[%clk 0:07:03.3]} 13... Qa5 {[%clk 0:08:15.5]} 14. Qd3 {[%clk
0:06:28.2]} 14... Rac8 {[%clk 0:07:36.7]} 15. Rfd1 {[%clk 0:06:22.7]} 15... Rfd8
{[%clk 0:07:05.5]} 16. a3 {[%clk 0:05:57.4]} 16... Qb6 {[%clk 0:06:48.8]} 17. b4
{[%clk 0:04:58.3]} 17... Kg7 {[%clk 0:04:06.5]} 18. h3 {[%clk 0:04:23.1]} 18...
a5 {[%clk 0:03:18.9]} 19. Nd5 {[%clk 0:03:54.8]} 19... Bxd5 {[%clk 0:03:05.5]}
20. cxd5 {[%clk 0:03:45.8]} 20... Nb8 {[%clk 0:03:06]} 21. Rb1 {[%clk
0:03:05.6]} 21... Rc7 {[%clk 0:03:02.9]} 22. Ne3 {[%clk 0:03:02.4]} 22... Rdc8
{[%clk 0:02:54.4]} 23. bxa5 {[%clk 0:01:54.1]} 23... Qxa5 {[%clk 0:02:53.4]} 24.
Rb5 {[%clk 0:01:32.5]} 24... Qa7 {[%clk 0:02:39.6]} 25. Qb1 {[%clk 0:01:18.4]}
25... Nbd7 {[%clk 0:02:28.4]} 26. Bf3 {[%clk 0:00:52.8]} 26... Nc5 {[%clk
0:02:12.6]} 27. Qb4 {[%clk 0:00:51.3]} 27... Ra8 {[%clk 0:01:30]} 28. Nc4 {[%clk
0:00:42.6]} 28... Ncxe4 {[%clk 0:00:58.9]} 29. Nb6 {[%clk 0:00:25.4]} 29... Nc3
{[%clk 0:00:59.6]} 30. Nxa8 {[%clk 0:00:17.8]} 30... Qxa8 {[%clk 0:00:42.6]} 31.
Ra5 {[%clk 0:00:14.9]} 31... Qd8 {[%clk 0:00:42.8]} 32. Re1 {[%clk 0:00:09.2]}
32... e4 {[%clk 0:00:40.7]} 33. Bxe4 {[%clk 0:00:05.3]} 33... Ncxe4 {[%clk
0:00:41.4]} 34. Rxe4 {[%clk 0:00:06.3]} 34... Nxe4 {[%clk 0:00:42.4]} 35. Kh2
{[%clk 0:00:02.6]} 35... Nc5 {[%clk 0:00:38.1]} 36. Qd4+ {[%clk 0:00:03.3]}
36... Qf6 {[%clk 0:00:39.1]} 0-1

[Event "GrandPrix_29.05"]
[Site "Chess.com"]
[Date "2020.05.29"]
[Round "6"]
[White "NikolaN98"]
[Black "Angry_Twin"]
[Result "0-1"]
[WhiteElo "2275"]
[BlackElo "2522"]
[TimeControl "600+2"]
[EndTime "12:01:49 PDT"]
[Termination "Angry_Twin won by resignation"]

1. e4 {[%clk 0:10:01]} 1... c5 {[%clk 0:10:00.4]} 2. Nc3 {[%clk 0:09:42.8]} 2...
d6 {[%clk 0:09:53.1]} 3. f4 {[%clk 0:09:43.2]} 3... g6 {[%clk 0:09:53.4]} 4. Nf3
{[%clk 0:09:43.7]} 4... Bg7 {[%clk 0:09:54.3]} 5. Bb5+ {[%clk 0:09:45.2]} 5...
Bd7 {[%clk 0:09:55.1]} 6. Bc4 {[%clk 0:09:46.7]} 6... Nc6 {[%clk 0:09:53]} 7.
O-O {[%clk 0:09:47.6]} 7... e6 {[%clk 0:09:48.8]} 8. d3 {[%clk 0:09:48]} 8...
Nge7 {[%clk 0:09:49.3]} 9. Qe1 {[%clk 0:09:48]} 9... a6 {[%clk 0:09:46.5]} 10.
a4 {[%clk 0:08:50.5]} 10... Nd4 {[%clk 0:09:40.7]} 11. Nxd4 {[%clk 0:08:47.3]}
11... cxd4 {[%clk 0:09:41.6]} 12. Ne2 {[%clk 0:08:43.9]} 12... d5 {[%clk
0:09:36.8]} 13. Bb3 {[%clk 0:08:02.1]} 13... dxe4 {[%clk 0:09:36.9]} 14. dxe4
{[%clk 0:08:03.1]} 14... d3 {[%clk 0:09:31.6]} 15. Ng3 {[%clk 0:07:45.9]} 15...
dxc2 {[%clk 0:09:32.2]} 16. Bxc2 {[%clk 0:07:42.4]} 16... Rc8 {[%clk 0:09:32.7]}
17. Qf2 {[%clk 0:06:48]} 17... Qc7 {[%clk 0:08:54.2]} 18. Bb3 {[%clk 0:06:17.6]}
18... O-O {[%clk 0:08:45.7]} 19. Be3 {[%clk 0:06:15.6]} 19... Qa5 {[%clk
0:08:22.1]} 20. Rfd1 {[%clk 0:05:21.9]} 20... Bc6 {[%clk 0:07:09.5]} 21. Rd3
{[%clk 0:04:33.5]} 21... Rfd8 {[%clk 0:05:59]} 22. Rxd8+ {[%clk 0:02:17.3]}
22... Qxd8 {[%clk 0:06:00.9]} 23. Rd1 {[%clk 0:02:14.9]} 23... Qe8 {[%clk
0:05:59.5]} 24. Ra1 {[%clk 0:01:30.5]} 24... Rd8 {[%clk 0:05:56.3]} 25. f5
{[%clk 0:01:31.1]} 25... exf5 {[%clk 0:05:52.8]} 26. exf5 {[%clk 0:01:31.9]}
26... Nd5 {[%clk 0:05:53.4]} 27. Bg5 {[%clk 0:01:20.1]} 27... Rc8 {[%clk
0:05:38.9]} 28. fxg6 {[%clk 0:01:19.6]} 28... hxg6 {[%clk 0:05:38.7]} 29. Re1
{[%clk 0:01:11.8]} 29... Qd7 {[%clk 0:05:38.8]} 30. Ne4 {[%clk 0:01:09.9]} 30...
Re8 {[%clk 0:05:39.1]} 31. h3 {[%clk 0:00:55.3]} 31... Re6 {[%clk 0:04:37.9]}
32. Re2 {[%clk 0:00:17.2]} 32... Bxa4 {[%clk 0:02:23.8]} 33. Bxa4 {[%clk
0:00:13.7]} 33... Qxa4 {[%clk 0:02:24.4]} 34. Nf6+ {[%clk 0:00:06.8]} 34... Bxf6
{[%clk 0:02:07.3]} 35. Rxe6 {[%clk 0:00:06.8]} 35... Bxg5 {[%clk 0:01:44.2]} 36.
Re5 {[%clk 0:00:03.7]} 36... Be3 {[%clk 0:01:32.4]} 37. Rxe3 {[%clk 0:00:02.7]}
37... Nxe3 {[%clk 0:01:34.3]} 38. Qxe3 {[%clk 0:00:04.5]} 38... Qa1+ {[%clk
0:01:35.7]} 39. Kh2 {[%clk 0:00:05.1]} 39... Qxb2 {[%clk 0:01:37.2]} 40. h4
{[%clk 0:00:05.3]} 40... Kg7 {[%clk 0:01:32.9]} 41. h5 {[%clk 0:00:05.1]} 41...
Qf6 {[%clk 0:01:27.2]} 42. g4 {[%clk 0:00:04.1]} 42... Qh4+ {[%clk 0:01:27.8]}
43. Kg2 {[%clk 0:00:04.2]} 43... Qxg4+ {[%clk 0:01:29]} 44. Kf1 {[%clk
0:00:05.9]} 44... Qxh5 {[%clk 0:01:28.8]} 45. Qd4+ {[%clk 0:00:07.1]} 45... Kh7
{[%clk 0:01:30.2]} 46. Qc4 {[%clk 0:00:06.7]} 46... Qf5+ {[%clk 0:01:32.1]} 47.
Kg2 {[%clk 0:00:07.7]} 47... b5 {[%clk 0:01:31.5]} 48. Qc6 {[%clk 0:00:08.3]}
48... Qg5+ {[%clk 0:01:32]} 49. Kf2 {[%clk 0:00:09]} 49... Kg7 {[%clk
0:01:33.6]} 50. Qxa6 {[%clk 0:00:09.5]} 50... Qf6+ {[%clk 0:01:35.5]} 0-1

[Event "GrandPrix_29.05"]
[Site "Chess.com"]
[Date "2020.05.29"]
[Round "6"]
[White "Artur0208"]
[Black "SavelijTartakover"]
[Result "0-1"]
[WhiteElo "2320"]
[BlackElo "2484"]
[TimeControl "600+2"]
[EndTime "12:01:53 PDT"]
[Termination "SavelijTartakover won on time"]

1. d4 {[%clk 0:10:01.9]} 1... d5 {[%clk 0:09:57.2]} 2. c4 {[%clk 0:10:02.9]}
2... c6 {[%clk 0:09:54.9]} 3. Nc3 {[%clk 0:10:03.9]} 3... Nf6 {[%clk 0:09:54.7]}
4. Nf3 {[%clk 0:10:05.5]} 4... dxc4 {[%clk 0:09:53.6]} 5. a4 {[%clk 0:10:06]}
5... Bf5 {[%clk 0:09:53.4]} 6. Ne5 {[%clk 0:10:06.5]} 6... e6 {[%clk 0:09:52.2]}
7. Nxc4 {[%clk 0:09:43.6]} 7... Bb4 {[%clk 0:09:45.1]} 8. Bg5 {[%clk 0:09:43.8]}
8... O-O {[%clk 0:09:21.4]} 9. e3 {[%clk 0:09:43.8]} 9... Nbd7 {[%clk
0:09:13.6]} 10. Be2 {[%clk 0:09:42.2]} 10... c5 {[%clk 0:09:01.5]} 11. O-O
{[%clk 0:09:41.1]} 11... cxd4 {[%clk 0:08:55.1]} 12. Qxd4 {[%clk 0:09:25.6]}
12... Nc5 {[%clk 0:07:43.8]} 13. Nd6 {[%clk 0:07:03.7]} 13... Bxc3 {[%clk
0:07:39]} 14. Qxc5 {[%clk 0:07:02.8]} 14... Bxb2 {[%clk 0:07:36.7]} 15. Ra2
{[%clk 0:07:03.4]} 15... b6 {[%clk 0:06:50.4]} 16. Qc6 {[%clk 0:04:58.9]} 16...
Be5 {[%clk 0:06:48.5]} 17. Nxf5 {[%clk 0:04:15.7]} 17... exf5 {[%clk 0:06:44.3]}
18. f4 {[%clk 0:04:04.1]} 18... Rc8 {[%clk 0:06:19]} 19. Qb7 {[%clk 0:02:12.5]}
19... Rc7 {[%clk 0:05:35.8]} 20. Qf3 {[%clk 0:02:12.5]} 20... Bd6 {[%clk
0:05:28.2]} 21. Bd3 {[%clk 0:00:54.1]} 21... Rc3 {[%clk 0:05:18.9]} 22. Bxf5
{[%clk 0:00:51.9]} 22... Rxe3 {[%clk 0:05:05.8]} 23. Qc6 {[%clk 0:00:51.8]}
23... Bc5 {[%clk 0:04:40]} 24. Kh1 {[%clk 0:00:52.7]} 24... Qd5 {[%clk
0:04:29.4]} 25. Qxd5 {[%clk 0:00:53.2]} 25... Nxd5 {[%clk 0:04:30.5]} 26. Rd2
{[%clk 0:00:53.6]} 26... Nc3 {[%clk 0:04:23.5]} 27. Rd7 {[%clk 0:00:53.5]} 27...
a5 {[%clk 0:04:15.5]} 28. Bc2 {[%clk 0:00:51.1]} 28... Ne4 {[%clk 0:03:34.3]}
29. Bh4 {[%clk 0:00:48]} 29... Re8 {[%clk 0:03:31.7]} 30. Rfd1 {[%clk
0:00:45.2]} 30... g6 {[%clk 0:03:13.9]} 31. h3 {[%clk 0:00:15.2]} 31... Kg7
{[%clk 0:02:37.4]} 32. Bd3 {[%clk 0:00:14.4]} 32... Nf6 {[%clk 0:01:46.5]} 33.
Bc4 {[%clk 0:00:10.6]} 33... Nxd7 {[%clk 0:01:42.5]} 34. Rxd7 {[%clk 0:00:11.6]}
34... Rf8 {[%clk 0:01:28.4]} 35. Bb5 {[%clk 0:00:06.7]} 35... Re4 {[%clk
0:01:24.3]} 36. Bg3 {[%clk 0:00:07.4]} 36... Rd4 {[%clk 0:01:21.5]} 37. Rb7
{[%clk 0:00:07.4]} 37... Rd1+ {[%clk 0:01:21.7]} 38. Kh2 {[%clk 0:00:08.9]}
38... Bg1+ {[%clk 0:01:19.5]} 39. Kh1 {[%clk 0:00:10.2]} 39... Rc8 {[%clk
0:01:11.3]} 40. h4 {[%clk 0:00:04.2]} 40... Rc3 {[%clk 0:01:04]} 41. Be2 {[%clk
0:00:03.5]} 41... Rdc1 {[%clk 0:00:59.3]} 0-1

[Event "GrandPrix_29.05"]
[Site "Chess.com"]
[Date "2020.05.29"]
[Round "6"]
[White "Novoselski"]
[Black "Fandorine"]
[Result "1-0"]
[WhiteElo "2465"]
[BlackElo "2444"]
[TimeControl "600+2"]
[EndTime "12:01:55 PDT"]
[Termination "Novoselski won by resignation"]

1. e4 {[%clk 0:10:01.9]} 1... c5 {[%clk 0:09:59.2]} 2. Nf3 {[%clk 0:10:01.6]}
2... d6 {[%clk 0:09:59.8]} 3. Bb5+ {[%clk 0:10:00.8]} 3... Nd7 {[%clk
0:09:59.4]} 4. c3 {[%clk 0:09:56.6]} 4... Nf6 {[%clk 0:09:58.9]} 5. Qe2 {[%clk
0:09:56.2]} 5... a6 {[%clk 0:09:59.2]} 6. Ba4 {[%clk 0:09:55.7]} 6... b5 {[%clk
0:09:55]} 7. Bc2 {[%clk 0:09:55.5]} 7... Bb7 {[%clk 0:09:55.9]} 8. O-O {[%clk
0:09:45.4]} 8... c4 {[%clk 0:08:32.5]} 9. b3 {[%clk 0:09:27.4]} 9... Rc8 {[%clk
0:08:21.8]} 10. b4 {[%clk 0:08:41.7]} 10... e6 {[%clk 0:07:58.9]} 11. a4 {[%clk
0:08:38.9]} 11... Be7 {[%clk 0:07:59.4]} 12. Na3 {[%clk 0:08:31.8]} 12... bxa4
{[%clk 0:06:26.5]} 13. Nxc4 {[%clk 0:08:08.2]} 13... Bxe4 {[%clk 0:06:25.9]} 14.
Bxe4 {[%clk 0:08:05.7]} 14... Nxe4 {[%clk 0:06:26.4]} 15. Na5 {[%clk 0:07:43.8]}
15... d5 {[%clk 0:06:19.8]} 16. Qxa6 {[%clk 0:07:37.7]} 16... Nb6 {[%clk
0:04:57.7]} 17. Qb5+ {[%clk 0:07:12.4]} 17... Kf8 {[%clk 0:04:57.5]} 18. Nd4
{[%clk 0:06:47.5]} 18... Nd6 {[%clk 0:04:33.9]} 19. Qe2 {[%clk 0:06:39.6]} 19...
Qd7 {[%clk 0:04:32.6]} 20. Bb2 {[%clk 0:06:11.4]} 20... Nbc4 {[%clk 0:03:57.9]}
21. Nxc4 {[%clk 0:06:08.9]} 21... Nxc4 {[%clk 0:03:58.3]} 22. Rfb1 {[%clk
0:05:55.6]} 22... e5 {[%clk 0:03:54.3]} 23. Nf3 {[%clk 0:05:50.2]} 23... f6
{[%clk 0:03:55]} 24. Bc1 {[%clk 0:05:42.5]} 24... Kf7 {[%clk 0:03:45]} 25. d3
{[%clk 0:05:30.9]} 25... Nd6 {[%clk 0:03:45.1]} 26. Bd2 {[%clk 0:05:29.1]} 26...
Rhd8 {[%clk 0:03:19.8]} 27. Be1 {[%clk 0:05:09.5]} 27... Qb5 {[%clk 0:03:11]}
28. Qd1 {[%clk 0:04:49.3]} 28... Ra8 {[%clk 0:03:08.7]} 29. Ra2 {[%clk
0:04:47.6]} 29... Ra7 {[%clk 0:02:59.7]} 30. Rba1 {[%clk 0:04:46.4]} 30... Rda8
{[%clk 0:03:01.1]} 31. Qc2 {[%clk 0:04:29.1]} 31... Bf8 {[%clk 0:01:38.2]} 32.
Nd2 {[%clk 0:04:17]} 32... d4 {[%clk 0:01:07.7]} 33. cxd4 {[%clk 0:04:03.2]}
33... exd4 {[%clk 0:01:06.6]} 34. Nf3 {[%clk 0:03:58.4]} 34... Nf5 {[%clk
0:00:50.4]} 35. g4 {[%clk 0:03:20.1]} 35... Ne7 {[%clk 0:00:38.3]} 36. Nxd4
{[%clk 0:03:13]} 36... Qd7 {[%clk 0:00:39.4]} 37. Qc4+ {[%clk 0:03:10.5]} 37...
Nd5 {[%clk 0:00:31.2]} 38. Nc6 {[%clk 0:02:56.2]} 38... Rc7 {[%clk 0:00:22.2]}
39. b5 {[%clk 0:02:55.9]} 39... a3 {[%clk 0:00:23.7]} 40. f3 {[%clk 0:02:45.7]}
40... Kg8 {[%clk 0:00:18.8]} 41. Bg3 {[%clk 0:02:44]} 41... Rcc8 {[%clk
0:00:17.2]} 42. Qb3 {[%clk 0:02:20.9]} 42... Kh8 {[%clk 0:00:13.4]} 43. Re1
{[%clk 0:02:10.1]} 43... Bc5+ {[%clk 0:00:07]} 44. d4 {[%clk 0:02:01.8]} 44...
Bf8 {[%clk 0:00:08.2]} 45. Kg2 {[%clk 0:01:57.6]} 45... Nb6 {[%clk 0:00:08.2]}
46. Qe6 {[%clk 0:01:47.3]} 46... Qb7 {[%clk 0:00:04.8]} 47. d5 {[%clk
0:01:42.9]} 47... Na4 {[%clk 0:00:04.6]} 48. d6 {[%clk 0:01:37.1]} 48... Nc3
{[%clk 0:00:03.3]} 49. d7 {[%clk 0:01:33.3]} 49... Qxb5 {[%clk 0:00:04.7]} 50.
dxc8=Q {[%clk 0:01:29.1]} 1-0

[Event "GrandPrix_29.05"]
[Site "Chess.com"]
[Date "2020.05.29"]
[Round "6"]
[White "NikolaGry"]
[Black "LuckyLuka04"]
[Result "1-0"]
[WhiteElo "2075"]
[BlackElo "2182"]
[TimeControl "600+2"]
[EndTime "12:02:09 PDT"]
[Termination "NikolaGry won by resignation"]

1. b3 {[%clk 0:10:01.9]} 1... d5 {[%clk 0:09:54.5]} 2. Bb2 {[%clk 0:10:01.8]}
2... c6 {[%clk 0:09:55.5]} 3. e3 {[%clk 0:10:02.3]} 3... Bf5 {[%clk 0:09:50]} 4.
c4 {[%clk 0:09:59]} 4... e6 {[%clk 0:09:48.8]} 5. Nf3 {[%clk 0:09:58.6]} 5...
Nf6 {[%clk 0:09:45.9]} 6. Nc3 {[%clk 0:09:56.3]} 6... Nbd7 {[%clk 0:09:41.8]} 7.
Nh4 {[%clk 0:09:19.2]} 7... Bg4 {[%clk 0:09:27.3]} 8. Qc2 {[%clk 0:09:03.4]}
8... Bd6 {[%clk 0:08:49.9]} 9. h3 {[%clk 0:08:49]} 9... Bh5 {[%clk 0:08:38.5]}
10. g4 {[%clk 0:08:35.2]} 10... Bg6 {[%clk 0:08:20.9]} 11. Nxg6 {[%clk
0:08:34.4]} 11... hxg6 {[%clk 0:08:21.8]} 12. Bg2 {[%clk 0:08:03.3]} 12... Rc8
{[%clk 0:08:18.3]} 13. d4 {[%clk 0:07:40.5]} 13... g5 {[%clk 0:07:43.5]} 14.
O-O-O {[%clk 0:07:17.3]} 14... Bb4 {[%clk 0:06:40.9]} 15. Ne2 {[%clk 0:06:01.9]}
15... c5 {[%clk 0:05:42.1]} 16. a3 {[%clk 0:05:27.2]} 16... Ba5 {[%clk
0:05:20.2]} 17. dxc5 {[%clk 0:05:10]} 17... Rxc5 {[%clk 0:05:10.8]} 18. Kb1
{[%clk 0:04:55.3]} 18... Qe7 {[%clk 0:05:05.2]} 19. Nd4 {[%clk 0:03:36.5]} 19...
a6 {[%clk 0:04:16.4]} 20. h4 {[%clk 0:03:06.7]} 20... Rxh4 {[%clk 0:04:02.6]}
21. Rxh4 {[%clk 0:03:04.2]} 21... gxh4 {[%clk 0:04:04.5]} 22. g5 {[%clk
0:03:01.7]} 22... Ng4 {[%clk 0:03:27.2]} 23. Qe2 {[%clk 0:02:49.5]} 23... Qxg5
{[%clk 0:02:54.4]} 24. cxd5 {[%clk 0:02:24]} 24... e5 {[%clk 0:01:54.5]} 25. b4
{[%clk 0:02:08]} 25... Rc8 {[%clk 0:01:50.4]} 26. bxa5 {[%clk 0:01:52.1]} 26...
exd4 {[%clk 0:01:49.5]} 27. Rxd4 {[%clk 0:01:43.4]} 27... Ngf6 {[%clk
0:01:03.4]} 28. f4 {[%clk 0:01:40.3]} 28... Qg3 {[%clk 0:00:49.8]} 29. Qf3
{[%clk 0:01:14.6]} 29... Qe1+ {[%clk 0:00:37.4]} 30. Rd1 {[%clk 0:01:13.1]}
30... Qxa5 {[%clk 0:00:38.3]} 31. Bh3 {[%clk 0:00:56.3]} 31... Rc5 {[%clk
0:00:18.7]} 32. e4 {[%clk 0:00:50.3]} 32... Nb6 {[%clk 0:00:14.1]} 33. d6 {[%clk
0:00:45.2]} 33... Nc4 {[%clk 0:00:10.6]} 34. d7+ {[%clk 0:00:41.5]} 34... Kd8
{[%clk 0:00:11.3]} 35. Qc3 {[%clk 0:00:32]} 35... Qxc3 {[%clk 0:00:06.6]} 36.
Bxc3 {[%clk 0:00:32.3]} 36... Nxa3+ {[%clk 0:00:05.4]} 37. Kb2 {[%clk
0:00:30.2]} 37... Nxe4 {[%clk 0:00:06.7]} 38. Bb4 {[%clk 0:00:28.2]} 38... Rb5
{[%clk 0:00:08.1]} 39. Kxa3 {[%clk 0:00:28.5]} 39... Nf2 {[%clk 0:00:05.5]} 40.
Be7+ {[%clk 0:00:28]} 1-0